bitfinex-derivatives/quotes_ETHF0:USTF0_20210702
["timestamp","ask_amount","ask_price","bid_price","bid_amount"]
[1625197942916,59.1838,2038.5,2037.6,1.19249704]
[1625197943015,67.7649,2038.5,2037.6,1.19249704]
[1625197943365,4.41054,2037.7,2037.6,1.19249704]
[1625197943466,6.95644,2037.7,2037.6,1.19249704]
[1625197943568,11.95644,2037.7,2037.6,1.19249704]
[1625197943666,11.95644,2037.7,2037.6,9.704e-05]
[1625197943766,11.95644,2037.7,2036.0,3.18249852]
[1625197944171,6.95644,2037.7,2036.0,3.18249852]
[1625197944279,11.95644,2037.7,2036.0,3.18249852]
[1625197944481,51.1895,2036.9,2036.0,3.18249852]
[1625197944580,53.7945,2036.9,2036.0,3.18249852]
[1625197944780,2.605,2036.9,2036.0,3.18249852]
[1625197944880,4.41054,2037.7,2036.0,3.18249852]
[1625197944980,4.41054,2037.7,2036.2,0.9839]
[1625197945187,4.41054,2037.7,2036.0,3.18249852]
[1625197945287,2.20527,2037.3,2037.2,2.20527]
[1625197945486,2.12227,2037.3,2037.2,62.30697]
[1625197945635,2.20527,2037.7,2037.2,62.30697]
[1625197946182,51.1092,2039.8,2037.3,17.69]
[1625197946282,51.1092,2039.8,2037.3,21.3389]
[1625197946732,51.1092,2039.8,2037.3,3.6489]
[1625197947283,2.20527,2038.5,2038.4,2.20527]
[1625197947687,2.20527,2038.5,2037.3,3.6489]
[1625197947834,4.69037,2038.5,2036.8,3.18249852]
[1625197948688,4.69037,2038.5,2036.9,17.69]
[1625197948792,4.69037,2038.5,2036.9,21.0164]
[1625197949191,2.20527,2038.5,2036.9,21.0164]
[1625197949292,2.20527,2038.5,2038.0,2.20527]
[1625197949391,2.20527,2038.5,2038.0,5.42157]
[1625197950244,51.1092,2039.8,2038.0,5.42157]
[1625197950952,56.1092,2039.8,2038.0,5.42157]
[1625197951052,56.1092,2039.8,2038.0,2.20527]
[1625197951153,56.1092,2039.8,2036.8,3.18249852]
[1625197951303,2.20527,2038.2,2037.9,2.20527]
[1625197952053,14.9566,2041.1,2037.9,2.20527]
[1625197952153,14.9566,2041.1,2037.9,5.39557]
[1625197952812,1.0,2041.0,2037.9,5.39557]
[1625197952911,6.0,2041.0,2037.9,5.39557]
[1625197953010,1.0,2041.0,2037.9,5.39557]
[1625197953111,1.0,2041.0,2038.0,17.93]
[1625197953361,2.20527,2039.7,2039.6,2.20527]
[1625197953511,2.20527,2039.7,2039.6,5.41377]
[1625197954113,2.20527,2039.7,2039.6,3.2085]
[1625197955015,2.20527,2039.7,2037.9,3.1903]
[1625197955321,2.20527,2039.7,2039.3,2.20527]
[1625197957344,2.20527,2039.4,2039.3,2.20527]
[1625197960911,1.0,2040.9,2039.3,2.20527]
[1625197961011,14.9566,2041.1,2039.3,5.53367]
[1625197961411,2.20527,2039.8,2039.6,2.20527]
[1625197962063,2.20527,2039.8,2039.3,3.3284]
[1625197962221,5.17197,2039.8,2037.0,7.9067]
[1625197962362,1.0,2039.7,2037.3,48.7312]
[1625197962612,2.20527,2039.8,2037.4,5.0]
[1625197962712,2.20527,2039.8,2037.8,1.15]
[1625197962812,3.20527,2040.0,2037.8,4.5418]
[1625197963064,3.20527,2040.0,2037.9,17.8]
[1625197963366,5.41054,2040.0,2039.9,2.20527]
[1625197963465,4.41054,2040.0,2039.9,2.20527]
[1625197964068,65.89804,2040.0,2039.7,2.20527]
[1625197964779,65.89804,2040.0,2038.4,1.15]
[1625197965381,65.89804,2040.0,2038.7,2.20527]
[1625197965382,2.20527,2038.8,2038.7,2.20527]
[1625197966083,3.2649,2040.8,2038.7,2.20527]
[1625197966181,3.51164092,2044.5,2038.7,4.49777]
[1625197966334,0.9725,2040.9,2038.7,4.49777]
[1625197966435,3.1345,2041.4,2038.7,4.49777]
[1625197967097,5.0,2041.0,2038.7,4.49777]
[1625197967390,2.20527,2039.3,2039.2,2.20527]
[1625197968594,5.06557,2039.3,2037.1,1.0]
[1625197968693,5.06557,2039.3,2036.3,7.3168]
[1625197968797,5.06557,2039.3,2036.3,5.0]
[1625197968900,5.06557,2039.3,2036.8,3.18249852]
[1625197969200,6.06557,2039.3,2036.8,3.18249852]
[1625197969298,6.06557,2039.3,2037.0,17.91]
[1625197969407,2.20527,2038.6,2038.5,2.20527]
[1625197971418,4.41054,2038.6,2038.5,2.20527]
[1625197974635,16.7466,2039.9,2038.5,2.20527]
[1625197974741,15.7466,2039.9,2038.5,5.44127]
[1625197975492,2.20527,2039.3,2039.1,2.20527]
[1625197975590,2.20527,2039.3,2039.1,4.57877]
[1625197975790,15.7466,2039.9,2039.1,4.57877]
[1625197975895,14.9566,2041.1,2039.1,4.57877]
[1625197976795,5.0,2041.0,2039.1,4.57877]
[1625197976893,8.1198,2041.0,2039.1,2.20527]
[1625197977447,2.20527,2039.2,2039.1,2.20527]
[1625197978617,2.20527,2039.3,2039.1,2.20527]
[1625197984850,2.20527,2039.3,2039.0,2.20527]
[1625197985051,2.20527,2039.3,2037.5,15.9438]
[1625197985404,2.20527,2039.3,2037.4,1.15]
[1625197985505,2.20527,2038.7,2038.6,2.20527]
[1625197985605,4.82427,2038.7,2038.6,2.20527]
[1625197987407,2.619,2038.7,2038.6,2.20527]
[1625197987512,15.8547,2040.9,2039.1,2.20527]
[1625197987513,2.20527,2039.3,2039.1,2.20527]
[1625197987656,2.20527,2039.3,2038.6,2.20527]
[1625197989511,2.20527,2039.3,2039.1,2.20527]
[1625197990215,2.20527,2039.3,2039.1,5.25987]
[1625197991566,2.20527,2039.2,2039.1,5.25987]
[1625197991666,2.0,2039.9,2039.1,5.25987]
[1625197993531,2.0,2039.9,2039.8,4.41054]
[1625197993890,2.0,2039.9,2039.8,2.20527]
[1625197999014,2.0,2039.9,2039.8,4.57147]
[1625198000621,2.0,2039.9,2039.8,2.3662]
[1625198000718,2.0,2039.9,2038.5,0.9819]
[1625198000820,2.0,2039.9,2038.6,0.16145967]
[1625198001071,2.0,2039.9,2038.4,0.16145649]
[1625198001271,2.0,2039.9,2038.0,0.16145771]
[1625198001368,2.0,2039.9,2038.7,17.86]
[1625198001470,2.0,2039.9,2038.7,20.524]
[1625198001570,2.0,2039.9,2039.7,2.20527]
[1625198003977,2.0,2040.5,2039.7,2.20527]
[1625198004079,0.53,2040.5,2039.7,4.67277]
[1625198005582,0.53,2040.5,2040.4,2.20527]
[1625198006189,16.9566,2041.1,2040.4,2.20527]
[1625198006485,16.9566,2041.1,2040.4,57.33677]
[1625198007094,16.9566,2041.1,2040.4,58.32177]
[1625198007245,2.0,2041.1,2040.4,58.32177]
[1625198007446,1.0187,2041.1,2040.4,58.32177]
[1625198007543,1.0187,2041.1,2040.5,17.93]
[1625198007660,1.0187,2041.1,2041.0,4.41054]
[1625198007762,1.0187,2041.1,2041.0,7.42624]
[1625198007859,1.0187,2041.1,2041.0,2.3159]
[1625198007958,1.0187,2041.1,2039.9,0.9731]
[1625198008057,4.574,2041.1,2040.9,1.15]
[1625198008408,4.574,2041.1,2038.9,15.3896]
[1625198008510,50.2538,2040.5,2038.9,15.3896]
[1625198008615,53.0334,2040.5,2039.0,0.1614129]
[1625198009212,53.0334,2040.5,2038.8,0.16144328]
[1625198009612,2.20527,2039.2,2039.0,2.20527]
[1625198009911,3.1673,2039.8,2039.0,2.20527]
[1625198011616,2.20527,2039.1,2039.0,2.20527]
[1625198012117,2.20527,2039.2,2039.0,2.20527]
[1625198012772,1.0,2040.4,2039.0,2.20527]
[1625198012869,50.2538,2040.5,2039.0,4.93627]
[1625198013172,50.2538,2040.5,2039.1,17.7]
[1625198013678,2.20527,2039.5,2039.3,2.20527]
[1625198013992,2.20527,2039.5,2039.0,2.20527]
[1625198014083,5.92027,2039.5,2037.8,15.459]
[1625198014232,5.92027,2039.5,2038.0,0.16163047]
[1625198014486,5.92027,2039.5,2037.9,0.16163273]
[1625198014737,58.7166,2038.7,2037.5,0.16165653]
[1625198014835,61.8596,2038.7,2037.0,0.16167319]
[1625198015335,61.8596,2038.7,2036.9,0.1616873]
[1625198015434,61.8596,2038.7,2037.1,17.67]
[1625198015637,2.20527,2038.4,2038.2,2.20527]
[1625198017640,4.41054,2038.4,2038.2,2.20527]
[1625198018040,16.0948,2039.4,2038.2,2.20527]
[1625198018149,15.0948,2039.4,2038.2,2.20527]
[1625198019641,2.20527,2039.2,2039.1,2.20527]
[1625198020441,47.05377,2039.2,2039.1,2.20527]
[1625198020544,49.55607,2039.2,2039.1,2.20527]
[1625198021695,51.76134,2039.2,2039.1,2.20527]
[1625198022047,6.91284,2039.2,2039.1,2.20527]
[1625198022145,4.41054,2039.2,2039.1,2.20527]
[1625198027722,4.41054,2039.2,2039.1,5.92177]
[1625198032396,14.8625,2040.4,2039.1,5.92177]
[1625198032900,50.2538,2040.5,2039.1,5.92177]
[1625198033698,2.20527,2039.8,2039.7,2.20527]
[1625198035803,4.41054,2039.8,2039.7,2.20527]
[1625198038323,4.41054,2039.8,2039.1,3.6469272]
[1625198038527,4.41054,2039.8,2039.1,2.20527]
[1625198038927,53.994,2039.4,2039.1,2.20527]
[1625198039027,57.6587,2039.4,2039.1,2.20527]
[1625198039780,4.41054,2039.2,2039.1,2.20527]
[1625198041685,4.5822,2040.0,2039.1,2.20527]
[1625198041793,2.20527,2039.7,2039.6,2.20527]
[1625198042344,2.20527,2039.7,2039.1,2.20527]
[1625198042441,2.20527,2039.7,2038.8,1.44223814]
[1625198042846,2.20527,2039.7,2038.7,1.44230682]
[1625198043270,2.20527,2039.7,2038.5,1.44231699]
[1625198043717,2.20527,2039.7,2038.6,1.44226384]
[1625198043818,2.20527,2039.0,2038.8,2.20527]
[1625198045824,2.20527,2038.9,2038.8,2.20527]
[1625198047785,4.88927,2038.9,2038.8,2.20527]
[1625198047936,4.88927,2038.9,2038.3,1.44221617]
[1625198048541,5.0,2038.8,2038.0,1.44233706]
[1625198048842,5.0,2038.8,2037.6,3.75007636]
[1625198048992,5.0,2038.8,2037.7,1.4425871]
[1625198049191,47.5421,2037.8,2037.7,1.4425871]
[1625198049292,51.2656,2037.8,2037.7,1.4425871]
[1625198049396,51.2656,2037.8,2036.5,3.74778664]
[1625198049745,51.2656,2037.8,2036.4,3.74785174]
[1625198049846,4.41054,2036.9,2036.7,2.20527]
[1625198049944,8.04224,2036.9,2036.7,2.20527]
[1625198051302,8.04224,2036.9,2036.0,6.93073672]
[1625198051650,8.04224,2036.9,2036.0,3.18249852]
[1625198051804,8.04224,2036.9,2036.0,5.38776852]
[1625198052873,8.04224,2036.9,2036.8,9.852e-05]
[1625198053024,13.04224,2036.9,2036.8,9.852e-05]
[1625198053226,8.04224,2036.9,2036.8,9.852e-05]
[1625198054429,13.04224,2036.9,2036.8,9.852e-05]
[1625198055478,8.04224,2036.9,2036.8,9.852e-05]
[1625198055581,13.04224,2036.9,2036.8,9.852e-05]
[1625198055678,8.04224,2036.9,2036.8,9.852e-05]
[1625198056582,13.04224,2036.9,2036.8,9.852e-05]
[1625198057431,8.04224,2036.9,2036.8,9.852e-05]
[1625198057732,13.04224,2036.9,2036.8,9.852e-05]
[1625198058134,13.04224,2036.9,2035.7,0.53787386]
[1625198058993,14.04224,2036.9,2034.7,1.0]
[1625198059093,61.5337,2035.5,2034.7,1.0]
[1625198059244,64.2025,2035.5,2034.2,3.7308548]
[1625198059345,64.2025,2035.5,2034.1,4.73037554]
[1625198059693,69.2025,2035.5,2034.1,4.73037554]
[1625198059796,4.41054,2035.3,2034.5,5.38776852]
[1625198059895,4.41054,2035.3,2034.5,3.18249852]
[1625198059997,9.41054,2035.3,2034.5,3.18249852]
[1625198060197,4.41054,2035.3,2034.5,3.18249852]
[1625198060297,9.41054,2035.3,2034.5,3.18249852]
[1625198060399,4.41054,2035.3,2034.5,3.18249852]
[1625198061149,4.41054,2035.3,2033.7,3.18249852]
[1625198061352,5.0,2035.2,2033.7,3.18249852]
[1625198061699,4.41054,2035.3,2033.7,3.18249852]
[1625198061950,4.41054,2033.8,2033.7,3.18249852]
[1625198062053,7.03874,2033.8,2032.9,3.18249852]
[1625198063056,4.41054,2033.8,2032.9,3.18249852]
[1625198063657,6.76454,2033.8,2032.9,3.18249852]
[1625198063907,4.41054,2033.0,2032.9,3.18249852]
[1625198064357,54.56524,2033.0,2032.9,3.18249852]
[1625198064459,4.41054,2033.0,2032.9,3.18249852]
[1625198066480,1.1,2036.6,2032.9,3.18249852]
[1625198066678,1.1,2036.6,2032.9,6.40539852]
[1625198066830,47.141,2033.5,2032.9,6.40539852]
[1625198067845,2.20527,2033.2,2033.1,2.20527]
[1625198069850,4.41054,2033.2,2033.1,2.20527]
[1625198071555,2.20527,2033.2,2033.1,2.20527]
[1625198071656,1.0,2034.6,2033.1,2.20527]
[1625198071805,61.5337,2035.5,2033.1,5.69837]
[1625198071904,2.20527,2033.9,2033.8,2.20527]
[1625198072055,66.5337,2035.5,2033.8,4.76577]
[1625198072211,61.5337,2035.5,2033.8,4.76577]
[1625198073315,15.8886,2035.4,2033.8,4.76577]
[1625198073462,14.9132,2035.4,2033.8,4.76577]
[1625198073611,14.9132,2035.4,2033.8,2.20527]
[1625198073913,14.9132,2035.4,2032.9,3.18249852]
[1625198073914,2.20527,2033.9,2032.9,3.18249852]
[1625198075937,2.20527,2033.9,2033.8,4.41054]
[1625198076034,2.20527,2034.1,2033.8,6.94284]
[1625198076585,14.9132,2035.4,2033.8,6.94284]
[1625198077392,14.9132,2035.4,2034.3,1.15]
[1625198077490,14.9132,2035.4,2034.3,3.4839]
[1625198077939,14.9132,2035.4,2035.3,2.20527]
[1625198077940,17.11847,2035.4,2035.3,2.20527]
[1625198078040,17.11847,2035.4,2035.3,1.20527]
[1625198078240,2.20527,2035.4,2035.3,1.20527]
[1625198079549,2.20527,2035.4,2035.1,2.20527]
[1625198079947,2.20527,2035.3,2035.1,2.20527]
[1625198092496,4.79137,2035.3,2035.1,2.20527]
[1625198093647,4.79137,2035.3,2033.7,1.0]
[1625198093749,4.79137,2035.3,2033.6,17.0565]
[1625198093848,5.79137,2035.3,2033.6,17.0565]
[1625198093952,5.79137,2035.3,2033.6,0.9837]
[1625198094051,5.79137,2035.3,2034.8,2.20527]
[1625198094199,4.79137,2035.3,2034.8,2.20527]
[1625198094800,45.6173,2034.9,2034.8,2.20527]
[1625198095003,45.6173,2034.9,2034.6,2.20527]
[1625198096053,4.41054,2034.7,2034.2,2.20527]
[1625198096154,6.97764,2034.7,2034.2,2.20527]
[1625198098077,4.41054,2034.7,2034.6,2.20527]
[1625198098226,2.20527,2034.7,2034.6,2.20527]
[1625198098675,2.10977,2034.7,2034.6,2.20527]
[1625198102350,1.0,2036.1,2034.6,2.20527]
[1625198102448,15.2011,2036.8,2034.6,5.40807]
[1625198102549,1.0,2036.3,2034.6,5.40807]
[1625198103301,1.0,2036.3,2034.7,17.87]
[1625198104119,2.20527,2035.7,2035.6,2.20527]
[1625198105714,15.2011,2036.8,2035.6,2.20527]
[1625198105814,15.2011,2036.8,2035.6,5.40777]
[1625198106113,2.20527,2036.0,2035.6,5.40777]
[1625198108185,2.20527,2036.0,2035.9,2.20527]
[1625198109722,2.20527,2036.0,2035.6,2.20527]
[1625198110173,2.20527,2035.7,2035.6,2.20527]
[1625198111439,2.20527,2036.0,2035.6,2.20527]
[1625198111544,2.20527,2036.0,2035.6,5.29707]
[1625198112141,15.2011,2036.8,2035.6,5.29707]
[1625198112244,2.20527,2036.4,2035.9,2.20527]
[1625198114258,2.20527,2036.4,2036.3,2.20527]
[1625198123982,15.9479,2037.6,2036.3,2.20527]
[1625198124130,13.4759,2037.6,2036.3,2.20527]
[1625198124227,1.0,2038.4,2037.5,4.41054]
[1625198124228,0.65227,2038.3,2037.5,4.41054]
[1625198124326,0.65227,2038.3,2037.5,8.06474]
[1625198126329,0.65227,2038.3,2038.0,2.20527]
[1625198127493,0.65227,2038.3,2037.5,2.20527]
[1625198127592,3.38157,2038.3,2037.5,2.20527]
[1625198127692,8.38157,2038.3,2037.5,2.20527]
[1625198127846,52.1002,2037.9,2037.5,2.20527]
[1625198128250,2.20527,2037.6,2037.5,2.20527]
[1625198130468,2.7293,2038.3,2037.5,2.20527]
[1625198131266,1.0,2039.0,2037.5,2.20527]
[1625198131413,5.0,2039.3,2037.5,2.20527]
[1625198131514,4.76244811,2040.3,2037.5,2.20527]
[1625198131617,51.7351,2039.2,2037.5,2.20527]
[1625198132268,2.20527,2038.4,2038.3,2.20527]
[1625198134537,1.0,2039.4,2038.3,2.20527]
[1625198134681,0.9805,2040.3,2038.3,2.20527]
[1625198134831,6.97032021,2040.9,2038.3,4.76997]
[1625198134832,2.85880902,2040.9,2038.3,4.76997]
[1625198134981,56.63,2039.1,2038.3,4.76997]
[1625198135632,5.766,2040.0,2038.3,4.76997]
[1625198136183,6.0,2040.0,2038.3,4.76997]
[1625198136285,2.20527,2039.3,2039.2,2.20527]
[1625198137698,2.20527,2039.3,2039.0,2.20527]
[1625198137799,2.20527,2039.3,2037.7,1.0]
[1625198137901,2.20527,2039.3,2036.9,1.0]
[1625198138002,1.0,2039.2,2036.8,14.8398]
[1625198138349,2.20527,2038.1,2038.0,2.20527]
[1625198138450,5.07127,2038.1,2038.0,2.20527]
[1625198138602,2.866,2038.1,2038.0,2.20527]
[1625198139908,1.0,2039.1,2038.0,2.20527]
[1625198140010,4.766,2039.8,2038.0,2.20527]
[1625198140110,5.766,2039.8,2038.0,2.20527]
[1625198140310,2.20527,2039.0,2038.6,2.20527]
[1625198142316,2.20527,2039.0,2038.9,2.20527]
[1625198143367,2.20527,2039.0,2038.9,1.04481257]
[1625198144769,2.20527,2039.0,2036.9,47.7916]
[1625198144868,6.07977,2039.0,2036.9,48.7916]
[1625198144970,6.07977,2039.0,2036.9,47.7916]
[1625198145620,6.07977,2039.0,2037.0,17.82]
[1625198146323,6.07977,2039.0,2038.7,2.20527]
[1625198146426,5.07977,2039.0,2038.7,2.20527]
[1625198148326,2.20527,2038.8,2038.7,2.20527]
[1625198148526,2.20527,2038.8,2037.1,1.0]
[1625198148676,3.20527,2038.8,2036.2,1.0]
[1625198150283,2.20527,2038.8,2036.2,1.0]
[1625198150385,2.20527,2038.2,2038.1,2.20527]
[1625198154754,1.9682,2039.7,2038.1,2.20527]
[1625198154854,0.9682,2039.7,2038.1,2.20527]
[1625198154953,17.05788368,2040.4,2038.1,2.20527]
[1625198155303,15.6281,2040.4,2038.1,2.20527]
[1625198155704,9.766,2039.8,2038.1,2.20527]
[1625198156355,9.766,2039.8,2038.7,2.20527]
[1625198156456,2.20527,2038.8,2038.7,2.20527]
[1625198159328,4.766,2039.8,2038.7,2.20527]
[1625198159430,4.766,2039.8,2038.7,4.62157]
[1625198160078,1.0,2040.3,2038.7,4.62157]
[1625198160180,5.0,2040.2,2038.7,4.62157]
[1625198160483,2.20527,2039.4,2039.3,2.20527]
[1625198161685,2.20527,2039.4,2039.3,1.04501637]
[1625198162433,4.41054,2039.4,2039.3,1.04501637]
[1625198162835,4.41054,2039.4,2038.7,2.20527]
[1625198164486,2.20527,2039.4,2039.1,2.20527]
[1625198171873,2.20527,2039.4,2039.1,5.93457]
[1625198172375,14.6597,2039.9,2039.1,5.93457]
[1625198172574,16.86497,2039.9,2039.8,4.41054]
[1625198172825,2.20527,2039.9,2039.8,2.20527]
[1625198176888,2.20527,2039.9,2039.4,2.20527]
[1625198178539,2.20527,2039.5,2039.4,2.20527]
[1625198179945,2.20527,2039.5,2038.4,3.529]
[1625198180048,2.20527,2039.5,2038.0,0.9897]
[1625198180245,2.20527,2039.5,2038.0,55.0885]
[1625198180497,2.20527,2039.5,2038.0,54.0988]
[1625198180596,4.41054,2039.5,2039.3,2.20527]
[1625198181598,4.41054,2039.5,2039.1,2.20527]
[1625198182607,2.20527,2039.2,2038.0,0.9796]
[1625198182703,4.53297,2039.2,2038.0,0.9796]
[1625198183817,4.53297,2039.2,2038.0,61.0071]
[1625198184568,4.53297,2039.2,2038.7,2.20527]
[1625198185478,2.3277,2039.2,2038.7,2.20527]
[1625198185581,1.0,2040.3,2038.7,2.20527]
[1625198185727,4.766,2040.4,2038.7,2.20527]
[1625198185830,9.766,2040.4,2038.7,2.20527]
[1625198186532,2.20527,2039.1,2039.0,2.20527]
[1625198187632,2.2978,2040.1,2039.0,2.20527]
[1625198188431,7.2978,2040.1,2038.7,2.20527]
[1625198188535,7.2978,2040.1,2037.4,1.0]
[1625198188632,4.41054,2038.8,2038.3,2.20527]
[1625198188735,7.18424,2038.8,2038.3,2.20527]
[1625198189185,63.82644,2038.8,2038.3,2.20527]
[1625198190595,2.20527,2038.4,2036.3,1.0]
[1625198190745,5.0,2038.3,2036.0,0.9909]
[1625198190849,7.6818,2038.3,2035.5,4.58874045]
[1625198190995,7.6818,2038.3,2035.9,18.48416278]
[1625198191096,19.6018,2038.3,2035.9,18.48416278]
[1625198191447,19.6018,2038.3,2035.9,15.6162]
[1625198192305,19.6018,2038.3,2035.4,1.9873]
[1625198192401,1.0,2038.2,2035.2,14.8777]
[1625198192549,1.0,2038.2,2035.4,53.1478]
[1625198192647,2.20527,2036.6,2036.5,2.20527]
[1625198194600,4.41054,2036.6,2036.5,2.20527]
[1625198195104,4.41054,2036.6,2036.5,59.08017]
[1625198195653,4.766,2037.6,2036.5,59.08017]
[1625198195753,4.766,2037.6,2036.5,62.76087]
[1625198196055,1.0,2038.3,2036.5,62.76087]
[1625198196157,20.4453,2038.7,2036.5,62.76087]
[1625198196616,2.20527,2037.2,2037.1,2.20527]
[1625198196715,2.20527,2037.2,2037.1,5.16737]
[1625198198369,2.20527,2037.2,2037.1,2.9621]
[1625198198469,2.20527,2037.2,2036.5,2.20527]
[1625198198675,2.20527,2036.6,2036.5,2.20527]
[1625198200376,61.3201,2037.6,2036.5,2.20527]
[1625198200528,4.766,2037.6,2036.5,2.20527]
[1625198200635,2.20527,2037.0,2036.9,2.20527]
[1625198200730,2.20527,2037.0,2036.9,4.92667]
[1625198203838,2.20527,2037.0,2036.9,2.20527]
[1625198204289,2.20527,2037.0,2036.5,2.20527]
[1625198204691,2.20527,2036.6,2036.5,2.20527]
[1625198204792,5.63187,2036.6,2036.5,2.20527]
[1625198205046,5.63187,2036.6,2035.5,2.87648612]
[1625198205342,43.0945,2036.3,2035.5,2.87648612]
[1625198205544,43.0945,2036.3,2035.1,2.87697103]
[1625198205947,5.63187,2036.6,2034.7,2.87773207]
[1625198206395,5.63187,2036.6,2035.2,2.1311]
[1625198206697,2.20527,2036.1,2036.0,2.20527]
[1625198206996,5.63227,2036.1,2036.0,2.20527]
[1625198208704,7.83754,2036.1,2036.0,2.20527]
[1625198210055,7.83754,2036.1,2034.6,2.87795153]
[1625198210407,7.83754,2036.1,2034.3,15.5713]
[1625198210408,7.83754,2036.1,2034.3,18.4504604]
[1625198210755,2.20527,2034.9,2034.8,2.20527]
[1625198212759,4.41054,2034.9,2034.8,2.20527]
[1625198218692,4.41054,2034.9,2033.4,2.8721287]
[1625198218794,4.41054,2034.9,2034.3,2.20527]
[1625198218795,2.20527,2034.9,2034.3,2.20527]
[1625198220749,4.41054,2034.9,2034.8,2.20527]
[1625198221452,2.20527,2034.9,2034.8,2.20527]
[1625198221850,1.0,2036.0,2034.8,2.20527]
[1625198221950,14.6909,2036.5,2034.8,2.20527]
[1625198222050,0.9908,2037.3,2034.8,2.20527]
[1625198222702,0.9908,2037.3,2034.9,17.82]
[1625198222807,2.20527,2036.2,2035.8,2.20527]
[1625198223454,5.32907,2036.2,2035.8,2.20527]
[1625198224810,2.20527,2035.9,2035.8,2.20527]
[1625198225014,2.20527,2035.9,2034.6,58.0863]
[1625198225166,2.20527,2035.9,2034.5,15.5695]
[1625198225264,2.20527,2035.9,2033.9,7.1259]
[1625198225265,2.20527,2035.9,2033.9,4.766]
[1625198225868,2.20527,2035.9,2034.0,17.69]
[1625198225968,2.20527,2035.9,2034.4,1.15]
[1625198226417,2.20527,2035.9,2034.5,17.7]
[1625198226824,2.20527,2035.9,2035.8,2.20527]
[1625198228188,2.20527,2035.9,2035.0,1.15]
[1625198228342,5.16227,2035.9,2035.0,1.15]
[1625198228790,5.16227,2035.9,2035.5,2.20527]
[1625198230153,2.20527,2035.9,2035.5,2.20527]
[1625198230795,2.20527,2035.6,2035.5,2.20527]
[1625198231095,2.20527,2035.9,2035.5,2.20527]
[1625198231196,15.0671,2036.4,2035.5,6.33137]
[1625198231445,1.0,2037.3,2035.5,6.33137]
[1625198231645,5.0,2037.7,2035.5,6.33137]
[1625198231847,31.5067,2037.8,2035.5,6.33137]
[1625198232297,1.0,2037.7,2035.5,6.33137]
[1625198232646,6.0,2037.7,2035.5,6.33137]
[1625198232801,2.20527,2036.6,2036.5,2.20527]
[1625198234803,4.41054,2036.6,2036.5,2.20527]
[1625198242616,2.20527,2036.6,2036.5,3.17657]
[1625198242714,4.766,2037.4,2036.5,3.17657]
[1625198242917,2.20527,2037.1,2037.0,2.20527]
[1625198248251,2.20527,2037.1,2036.5,2.20527]
[1625198248951,4.41054,2036.6,2036.5,2.20527]
[1625198249051,2.20527,2036.6,2036.5,2.20527]
[1625198254417,2.20527,2036.7,2036.5,2.20527]
[1625198258991,2.20527,2036.6,2036.5,2.20527]
[1625198259092,5.52987,2036.6,2035.5,17.1112]
[1625198259247,5.52987,2036.6,2035.5,16.1288]
[1625198259394,5.52987,2036.6,2034.7,1.0]
[1625198259492,5.52987,2036.6,2034.5,2.00607642]
[1625198259744,5.52987,2036.6,2034.4,59.7382]
[1625198260294,5.52987,2036.6,2034.5,1.0]
[1625198260548,5.52987,2036.6,2034.9,0.9708]
[1625198261048,2.20527,2036.0,2035.9,2.20527]
[1625198262699,5.14437,2036.0,2035.9,2.20527]
[1625198263055,7.34964,2036.0,2035.9,2.20527]
[1625198263657,2.20527,2036.0,2035.9,2.20527]
[1625198263908,4.766,2037.4,2035.9,2.20527]
[1625198264058,4.766,2037.4,2035.9,5.18917]
[1625198265062,2.20527,2037.1,2037.0,2.20527]
[1625198267071,4.41054,2037.1,2037.0,2.20527]
[1625198267971,4.41054,2037.1,2036.8,2.20527]
[1625198268070,4.41054,2037.1,2034.9,2.98052358]
[1625198268220,5.41054,2037.1,2035.0,5.916]
[1625198268773,5.41054,2037.1,2035.4,17.71]
[1625198269022,3.20527,2037.1,2036.7,2.20527]
[1625198269123,2.20527,2037.1,2036.7,2.20527]
[1625198271098,2.20527,2036.8,2036.7,2.20527]
[1625198278410,2.20527,2036.8,2036.5,2.20527]
[1625198278962,2.20527,2036.8,2035.7,0.9814]
[1625198279111,2.20527,2036.3,2036.2,2.20527]
[1625198280817,2.20527,2036.8,2036.2,2.20527]
[1625198281168,2.20527,2036.8,2036.7,4.41054]
[1625198281715,2.20527,2036.8,2036.2,2.4161]
[1625198282578,2.20527,2036.8,2035.7,0.9814]
[1625198283174,2.20527,2036.8,2036.4,2.20527]
[1625198285144,2.20527,2036.8,2036.7,2.20527]
[1625198288152,2.20527,2036.8,2036.4,2.20527]
[1625198288302,4.98767,2036.8,2035.5,2.02063482]
[1625198288604,4.98767,2036.8,2035.4,2.02074906]
[1625198288754,55.8217,2036.1,2035.4,2.02074906]
[1625198289106,55.8217,2036.1,2035.3,1.4436322]
[1625198289208,58.7842,2036.1,2036.0,2.20527]
[1625198290412,2.9625,2036.1,2036.0,2.20527]
[1625198290911,2.20527,2036.2,2036.0,2.20527]
[1625198291209,4.41054,2036.2,2036.0,2.20527]
[1625198293666,4.41054,2036.2,2036.0,4.52817]
[1625198294065,2.20527,2036.2,2036.0,4.52817]
[1625198294518,1.0,2037.0,2036.0,4.52817]
[1625198294618,1.35944304,2037.3,2036.0,4.52817]
[1625198295067,1.35944304,2037.3,2036.6,45.5949]
[1625198295172,1.36060288,2037.6,2037.0,2.20527]
[1625198295318,2.20527,2037.1,2037.0,2.20527]
[1625198295918,5.70107,2037.1,2035.8,2.44435417]